fUST/lending_fUST_20260221
["ID","MTS","AMOUNT","RATE_DAILY","PERIOD"]
[406283391,1771687845238,-1045.15027443,0.000215,2]
[406283392,1771687845247,-12928.85739762,0.000215,2]
[406283393,1771687845256,-151.0,0.000215,3]
[406283394,1771687845265,-2598.78716542,0.00021539,2]
[406283395,1771687845274,-27030.8824286,0.00021618,2]
[406283396,1771687845285,-16599.31665842,0.00021802,2]
[406283397,1771687845294,-150.0,0.00021918,2]
[406283398,1771687845305,-1463.1577658,0.00022174,2]
[406283399,1771687845315,-172.87,0.000222,7]
[406283400,1771687845324,-300.0,0.00022466,2]
[406283401,1771687845333,-1039.0444853,0.000225,2]
[406283402,1771687845342,-3799.99,0.000225,2]
[406283403,1771687845350,-166.43,0.000225,7]
[406283404,1771687845360,-151.0,0.000226,9]
[406283405,1771687845369,-205.52072416,0.00022676,2]
[406283406,1771687845378,-415.87968235,0.00022677,2]
[406283407,1771687845387,-405.27778487,0.00022981,2]
[406283408,1771687845396,-999.99999801,0.00023,2]
[406283409,1771687845405,-289.00605944,0.00023,3]
[406283410,1771687845415,-2028.9566217,0.00023,4]
[406283411,1771687845424,-157.11901119,0.00023014,2]
[406283412,1771687845433,-151.53860009,0.00023047,2]
[406283413,1771687845442,-366.0,0.00023101,2]
[406283414,1771687845454,-291.0,0.00023153,2]
[406283415,1771687845463,-291.0,0.00023165,2]
[406283416,1771687845472,-532.78784786,0.00023204,2]
[406283417,1771687845481,-291.0,0.0002321,2]
[406283418,1771687845490,-316.55,0.000233,14]
[406283419,1771687845499,-291.0,0.00023405,2]
[406283420,1771687845508,-27030.8824286,0.00023452,2]
[406283421,1771687845517,-681.75936479,0.00023492,2]
[406283422,1771687845527,-291.0,0.00023531,2]
[406283424,1771687845536,-291.0,0.00023545,2]
[406283425,1771687845545,-291.0,0.00023579,2]
[406283426,1771687845554,-261.04144841,0.00023586,2]
[406283427,1771687845563,-151.0,0.000236,10]
[406283428,1771687845573,-717.28396639,0.00023627,2]
[406283429,1771687845582,-3686.06274064,0.0002366,2]
[406283430,1771687845664,-556598.39249406,0.0002376,2]
[406283431,1771687845674,-21923.14223257,0.0002376,2]
[406283432,1771687845683,-477.245,0.0002378,2]
[406283433,1771687845693,-487.311,0.0002378,2]
[406283434,1771687845702,-754.222,0.0002378,2]
[406283435,1771687845712,-199.88,0.0002378,2]
[406283436,1771687845721,-291.0,0.000239,2]
[406283437,1771687845731,-49873.99896118,0.00024,2]
[406283438,1771687845740,-1745.9338506,0.00024,2]
[406283439,1771687845750,-468.31861984,0.00024,2]
[406283440,1771687845759,-915.57569583,0.00024026,2]
[406283441,1771687845768,-291.0,0.0002411,2]
[406283442,1771687845777,-2139.34315465,0.00024142,2]
[406283443,1771687845786,-291.0,0.00024162,2]
[406283444,1771687845795,-1000.92594973,0.00024273,2]
[406283445,1771687845804,-1463.1577658,0.00024285,2]
[406283446,1771687845814,-172.87,0.000243,7]
[406283447,1771687845823,-737.73403467,0.00024307,2]
[406283448,1771687845833,-150.628,0.0002433,2]
[406283449,1771687845842,-274.92162937,0.00024497,2]
[406283450,1771687845851,-516.80058491,0.0002465,2]
[406283451,1771687845861,-68209.42163889,0.0002465,2]
[406283452,1771687845870,-150.20442326,0.00024658,2]
[406283453,1771687845879,-500.0,0.00024658,2]
[406283454,1771687845889,-291.0,0.00024669,2]
[406283455,1771687845897,-166.43,0.000247,7]
[406283456,1771687845907,-500.0,0.00024713,2]
[406283457,1771687845916,-500.0,0.00024768,2]
[406283458,1771687845925,-291.0,0.00024771,2]
[406283459,1771687845935,-500.0,0.00024822,2]
[406283460,1771687845944,-291.0,0.00024847,2]
[406283461,1771687845953,-996.16261107,0.00024849,2]
[406283462,1771687845962,-500.0,0.00024877,2]
[406283463,1771687845971,-478892.549008,0.000249,2]
[406283464,1771687845979,-291.0,0.0002491,2]
[406283465,1771687845988,-1029.29014791,0.00024918,2]
[406283466,1771687845997,-500.0,0.00024932,2]
[406283467,1771687846007,-279.0,0.00024932,10]
[406283468,1771687846016,-728.0,0.00024932,10]
[406283469,1771687846025,-500.0,0.00024987,2]
[406283470,1771687846034,-291.0,0.0002499,2]
[406283471,1771687846043,-1154.96000917,0.00025,2]
[406283472,1771687846052,-2000.0,0.00025,14]
[406283473,1771687846062,-2000.0,0.00025,14]
[406283474,1771687846072,-2000.0,0.00025,14]
[406283475,1771687846081,-2000.0,0.00025,14]
[406283476,1771687846090,-615.88,0.00025,14]
[406283477,1771687846099,-12501.91016567,0.00025,20]
[406283478,1771687846108,-500.0,0.00025042,2]
[406283479,1771687846117,-168.0,0.00025043,2]
[406283480,1771687846126,-291.0,0.00025072,2]
[406283481,1771687846135,-515.11955381,0.00025096,2]
[406283482,1771687846146,-3799.99,0.000251,2]
[406283483,1771687846155,-393.0,0.00025101,2]
[406283484,1771687846164,-751.72770216,0.00025123,4]
[406283485,1771687846173,-291.0,0.00025189,2]
[406283486,1771687846182,-584.31941001,0.000252,5]
[406283487,1771687846192,-291.0,0.00025249,2]
[406283488,1771687846201,-291.0,0.00025301,2]
[406283489,1771687846211,-288.80181042,0.00025408,4]
[406283490,1771687846220,-291.0,0.00025477,2]
[406283491,1771687846229,-1199.47533782,0.00025564,5]
[406283492,1771687846238,-155.128667,0.000256,5]
[406283493,1771687846247,-1016.30933991,0.00025671,5]
[406283494,1771687846256,-168.0,0.00025829,2]
[406283495,1771687846265,-500.0,0.0002591,7]
[406283496,1771687846274,-500.0,0.00025937,7]
[406283497,1771687846282,-793.70870464,0.00025938,6]
[406283498,1771687846291,-161.0,0.00026,5]
[406283499,1771687846301,-168.0,0.0002602,2]
[406283500,1771687846309,-500.0,0.00026035,7]
[406283501,1771687846319,-500.0,0.00026129,7]
[406283502,1771687846328,-1341.29632942,0.00026209,7]
[406283503,1771687846338,-500.0,0.00026275,7]
[406283504,1771687846347,-743.87469872,0.0002628,2]
[406283505,1771687846356,-316.55,0.000263,14]
[406283506,1771687846365,-288.80181042,0.00026318,7]
[406283507,1771687846374,-172.87,0.000264,7]
[406283508,1771687846383,-406.0,0.00026404,3]
[406283509,1771687846393,-1076.74952642,0.00026494,8]
[406283510,1771687846402,-166.43,0.000266,7]
[406283511,1771687846412,-500.0,0.00026613,7]
[406283512,1771687846422,-500.0,0.000267,7]
[406283513,1771687846431,-500.0,0.00026739,7]
[406283515,1771687846441,-849.68337461,0.00026753,8]
[406283516,1771687846450,-428.0,0.0002678,2]
[406283517,1771687846459,-428.0,0.0002678,2]
[406283518,1771687846469,-726.0,0.0002678,2]
[406283519,1771687846478,-181.0,0.0002678,2]
[406283520,1771687846493,-500.0,0.00026795,7]
[406283521,1771687846508,-500.0,0.00026847,7]
[406283522,1771687846521,-1398.02472606,0.00026855,10]
[406283523,1771687846534,-743.87469872,0.00027,7]
[406283524,1771687846545,-168.0,0.00027078,2]
[406283525,1771687846558,-168.0,0.0002709,2]
[406283526,1771687846570,-420.0,0.00027101,2]
[406283527,1771687846584,-302.68199146,0.00027229,11]
[406283528,1771687846597,-1157.33644176,0.00027316,11]
[406283529,1771687846614,-150.0,0.0002733,2]
[406283530,1771687846627,-402.0,0.00027364,3]
[406283531,1771687846641,-396.68958674,0.0002739,7]
[406283532,1771687846656,-150.54497826,0.00027397,5]
[406283533,1771687846668,-3799.99,0.000274,2]
[406283534,1771687846681,-1000.0,0.000275,10]
[406283535,1771687846694,-1596.5741143,0.000275,11]
[406283536,1771687846705,-905.65804457,0.00027568,12]
[406283537,1771687846718,-500.0,0.00027658,7]
[406283538,1771687846732,-500.0,0.00027662,7]
[406283539,1771687846745,-888.25,0.00027747,2]
[406283540,1771687846758,-1000.0,0.00027777,5]
[406283541,1771687846768,-150.0,0.00028,5]
[406283542,1771687846779,-1237.9233571,0.00028139,13]
[406283543,1771687846791,-316.5621725,0.0002814,13]
[406283544,1771687846803,-1653.30251094,0.00028146,13]
[406283545,1771687846815,-159.06064499,0.00028152,13]
[406283546,1771687846828,-500.0,0.00028156,7]
[406283547,1771687846840,-500.0,0.00028195,7]
[406283548,1771687846853,-1003.61371702,0.00028384,14]
[406283549,1771687846867,-172.87,0.000285,7]
[406283550,1771687846880,-250.0,0.00028548,5]
[406283551,1771687846895,-2598.78716542,0.00028608,2]
[406283552,1771687846905,-500.0,0.00028665,7]
[406283553,1771687846915,-500.0,0.00028767,7]
[406283554,1771687846925,-1795.12350254,0.00028791,14]
[406283555,1771687846936,-500.0,0.0002889,7]
[406283556,1771687846948,-166.43,0.000289,7]
[406283557,1771687846961,-74648.09,0.000289,2]
[406283558,1771687846974,-1378.95045894,0.00028961,14]
[406283559,1771687846985,-372.08289667,0.00029051,14]
[406283560,1771687846996,-350.0,0.00029096,5]
[406283561,1771687847008,-186.55086199,0.00029101,2]
[406283562,1771687847020,-500.0,0.00029174,7]
[406283563,1771687847032,-1087.57572197,0.00029199,14]
[406283564,1771687847042,-501.09702275,0.00029301,7]
[406283565,1771687847052,-316.55,0.000294,14]
[406283566,1771687847063,-1965.30869246,0.00029437,14]
[406283567,1771687847074,-500.0,0.00029469,7]
[406283568,1771687847085,-475.9137,0.000295,2]
[406283569,1771687847096,-500.0,0.00029505,7]
[406283570,1771687847107,-499.3,0.00029556,7]
[406283571,1771687847123,-500.0,0.00029559,7]
[406283572,1771687847135,-151.0,0.00029601,21]
[406283573,1771687847150,-500.0,0.00029623,7]
[406283574,1771687847162,-450.0,0.00029644,5]
[406283575,1771687847173,-3799.99,0.000297,2]
[406283576,1771687847185,-428.0,0.0002978,2]
[406283577,1771687847196,-428.0,0.0002978,2]
[406283578,1771687847207,-726.0,0.0002978,2]
[406283579,1771687847218,-181.0,0.0002978,2]
[406283580,1771687847229,-1499.83083195,0.00029784,14]
[406283581,1771687847240,-4651.27434469,0.0002985,7]
[406283582,1771687847251,-500.0,0.00029859,7]
[406283583,1771687847262,-372.08289667,0.00029961,14]
[406283584,1771687847273,-27146.60730969,0.0003,2]
[406283585,1771687847284,-271.05695501,0.0003,2]
[406283586,1771687847295,-320.0,0.0003,2]
[406283587,1771687847306,-1000.0,0.0003,15]
[406283588,1771687847318,-11424.82734586,0.0003,2]
[406283589,1771687847329,-23953.54168991,0.0003,3]
[406283590,1771687847340,-3017.8182179,0.0003,7]
[406283591,1771687847350,-743.87469872,0.0003,3]
[406283592,1771687847359,-500.0,0.00030011,7]
[406283593,1771687847368,-1227.5123969,0.00030014,14]
[406283594,1771687847377,-1993.67289078,0.00030083,14]
[406283595,1771687847386,-785.17908637,0.00030094,2]
[406283596,1771687847397,-2405.04149511,0.000301,10]
[406283597,1771687847406,-500.0,0.00030109,7]
[406283598,1771687847415,-150.0,0.0003013,2]
[406283599,1771687847425,-2000.0,0.00030137,2]
[406283600,1771687847434,-2000.0,0.00030137,2]
[406283601,1771687847444,-2000.0,0.00030137,2]
[406283602,1771687847453,-2000.0,0.00030137,2]
[406283603,1771687847463,-2000.0,0.00030137,2]
[406283604,1771687847472,-2000.0,0.00030137,2]
[406283605,1771687847595,-1352.77458295,0.00030137,2]
[406283606,1771687847609,-164.0,0.00030183,3]
[406283607,1771687847618,-550.0,0.00030192,5]
[406283608,1771687847629,-500.0,0.000302,7]
[406283609,1771687847638,-500.0,0.00030229,7]
[406283610,1771687847648,-169.09,0.000303,7]
[406283611,1771687847657,-500.0,0.00030309,7]
[406283612,1771687847666,-74648.09,0.000304,2]
[406283613,1771687847675,-500.0,0.00030403,7]
[406283614,1771687847684,-500.0,0.00030434,7]
[406283615,1771687847694,-500.0,0.00030536,7]
[406283616,1771687847703,-500.0,0.00030547,7]
[406283617,1771687847712,-172.87,0.000306,7]
[406283618,1771687847721,-1701.29812031,0.00030606,14]
[406283619,1771687847730,-159.91542282,0.00030705,14]
[406283620,1771687847739,-2192.22227901,0.00030728,14]
[406283621,1771687847749,-650.0,0.0003074,5]
[406283622,1771687847758,-500.0,0.00030763,7]
[406283623,1771687847766,-1423.42374179,0.0003083,14]
[406283624,1771687847776,-427.60362084,0.00030872,14]
[406283625,1771687847785,-500.0,0.00030942,7]
[406283626,1771687847794,-307.58193109,0.0003099,2]
[406283627,1771687847803,-488.15198669,0.00031,2]
[406283628,1771687847812,-1254.42261948,0.00031,7]
[406283629,1771687847822,-1254.42261948,0.00031,7]
[406283630,1771687847831,-500.0,0.00031191,7]
[406283631,1771687847840,-750.0,0.00031288,5]
[406283632,1771687847849,-2277.31487397,0.00031374,14]
[406283633,1771687847858,-1983.352324,0.00031429,14]
[406283634,1771687847868,-500.0,0.00031442,7]
[406283635,1771687847877,-647.59110955,0.00031451,7]
[406283636,1771687847886,-166.43,0.000315,7]
[406283637,1771687847895,-2332.0,0.000315,7]
[406283638,1771687847905,-500.0,0.00031526,7]
[406283639,1771687847914,-500.0,0.00031542,7]
[406283640,1771687847923,-500.0,0.00031577,7]
[406283641,1771687847932,-500.0,0.000316,7]
[406283642,1771687847942,-1451.41107677,0.00031645,14]
[406283643,1771687847951,-29059.53414875,0.0003168,2]
[406283644,1771687848014,-2087.82051655,0.0003168,2]
[406283645,1771687848028,-1505.97702759,0.0003168,2]
[406283681,1771688058831,815.64944035,0.000156,120]
[406283682,1771688066959,5000.0,0.000156,120]
[406283683,1771688075043,5000.0,0.000156,120]
[406283684,1771688097268,1373.56561197,0.000156,120]
[406283790,1771688278723,384.5,6.893e-05,2]
[406283791,1771688279028,384.5,6.893e-05,2]
[406283802,1771688408207,156.3,6.9e-05,2]
[406283803,1771688409296,156.3,7e-05,2]
[406283925,1771689038827,-254.04,7.1e-05,2]
[406283927,1771689038837,-245.95,7.1e-05,2]
[406283929,1771689038846,-520.0,7.1e-05,2]
[406283931,1771689038855,-150.0,7.125e-05,2]
[406283933,1771689038864,-156.3,7.2e-05,2]
[406283935,1771689038874,-156.3,7.4e-05,2]
[406283937,1771689038883,-156.3,7.5e-05,2]
[406283939,1771689038892,-156.3,7.6e-05,2]
[406283941,1771689038902,-177.0,9.125e-05,2]
[406283944,1771689038912,-204.0,0.00011125,2]
[406283947,1771689038921,-1200.0,0.00011537,2]
[406283949,1771689038930,-2044.5857429,0.00011538,2]
[406283951,1771689038939,-2776.49163603,0.00011538,2]
[406283952,1771689038948,-253.09998,0.00011649,2]
[406283955,1771689038958,-300.0,0.00012619,2]
[406283956,1771689038967,-579.0,0.00012691,2]
[406283959,1771689038976,-231.0,0.00013125,2]
[406283961,1771689038987,-300.0,0.00013269,2]
[406283962,1771689038996,-300.0,0.00013269,2]
[406283964,1771689039006,-300.0,0.00013269,2]
[406283966,1771689039015,-500.0,0.00013273,2]
[406283968,1771689039025,-500.0,0.00013273,2]
[406283970,1771689039035,-500.0,0.00013273,2]
[406283973,1771689039048,-300.0,0.00013673,2]
[406283975,1771689039058,-500.0,0.00013698,2]
[406283977,1771689039068,-307.35634442,0.00013698,2]
[406283979,1771689039081,-300.0,0.00013698,2]
[406283981,1771689039091,-1261.2450075,0.00013699,2]
[406283983,1771689039100,-500.0,0.00013699,2]
[406283985,1771689039109,-165.78854723,0.00013699,2]
[406283987,1771689039120,-500.0,0.00013699,2]
[406283989,1771689039129,-500.0,0.00013699,2]
[406283991,1771689039138,-1000.0,0.00013821,2]
[406283993,1771689039147,-1000.0,0.00013821,2]
[406283995,1771689039157,-1000.0,0.00013821,2]
[406283997,1771689039167,-215.91602185,0.00014057,2]
[406283998,1771689039176,-1593.427057,0.00014186,2]
[406284000,1771689039185,-600.0,0.00014221,2]
[406284002,1771689039195,-282.7461367,0.00014246,2]
[406284004,1771689039204,-377.48473941,0.00014247,2]
[406284006,1771689039214,-1000.0,0.00014247,2]
[406284009,1771689039223,-1000.0,0.00014247,2]
[406284011,1771689039233,-1500.0,0.00014368,2]
[406284023,1771689039334,-1500.0,0.00014368,2]
[406284025,1771689039343,-1500.0,0.00014368,2]
[406284027,1771689039352,-1394.54095305,0.00014669,2]
[406284029,1771689039362,-900.0,0.00014768,2]
[406284031,1771689039371,-1593.427057,0.00014783,2]
[406284033,1771689039381,-500.0,0.00014795,2]
[406284035,1771689039390,-1500.0,0.00014795,2]
[406284037,1771689039398,-1500.0,0.00014795,2]
[406284039,1771689039409,-1685.75477264,0.00014812,2]
[406284041,1771689039418,-500.0,0.00014912,2]
[406284043,1771689039427,-168.23117706,0.00014912,2]
[406284045,1771689039437,-500.0,0.00014912,2]
[406284047,1771689039446,-500.0,0.00014912,2]
[406284049,1771689039455,-500.0,0.00014912,2]
[406284051,1771689039464,-500.0,0.00014912,2]
[406284053,1771689039473,-500.0,0.00014912,2]
[406284055,1771689039483,-500.0,0.00014912,2]
[406284057,1771689039491,-500.0,0.00014912,2]
[406284059,1771689039501,-500.0,0.00014912,2]
[406284061,1771689039510,-500.0,0.00014912,2]
[406284063,1771689039519,-500.0,0.00014912,2]
[406284065,1771689039528,-500.0,0.00014912,2]
[406284067,1771689039537,-457.03782217,0.00014912,2]
[406284069,1771689039546,-500.0,0.00014912,2]
[406284071,1771689039555,-500.0,0.00014912,2]
[406284073,1771689039565,-500.0,0.00014912,2]
[406284075,1771689039574,-500.0,0.00014912,2]
[406284077,1771689039584,-500.0,0.00014912,2]
[406284079,1771689039593,-500.0,0.00014912,2]
[406284081,1771689039603,-500.0,0.00014912,2]
[406284083,1771689039612,-500.0,0.00014912,2]
[406284085,1771689039621,-500.0,0.00014912,2]
[406284087,1771689039630,-500.0,0.00014912,2]
[406284089,1771689039639,-500.0,0.00014912,2]
[406284091,1771689039648,-500.0,0.00014912,2]
[406284093,1771689039657,-500.0,0.00014912,2]
[406284095,1771689039667,-500.0,0.00014912,2]
[406284097,1771689039679,-500.0,0.00014912,2]
[406284100,1771689039691,-500.0,0.00014912,2]
[406284102,1771689039700,-500.0,0.00014912,2]
[406284104,1771689039711,-500.0,0.00014912,2]
[406284106,1771689039720,-500.0,0.00014912,2]
[406284108,1771689039728,-500.0,0.00014912,2]
[406284110,1771689039738,-2000.0,0.00014916,2]
[406284112,1771689039747,-1833.69771894,0.00014916,2]
[406284114,1771689039756,-2000.0,0.00014916,2]
[406284116,1771689039765,-258.0,0.00015125,2]
[406284118,1771689039774,-1200.0,0.00015316,2]
[406284119,1771689039784,-164.5818823,0.00015342,2]
[406284121,1771689039793,-2000.0,0.00015342,2]
[406284124,1771689039803,-1593.427057,0.00015381,2]
[406284126,1771689039812,-2500.0,0.00015464,2]
[406284127,1771689039821,-2500.0,0.00015464,2]
[406284129,1771689039831,-1500.0,0.00015864,2]
[406284131,1771689039840,-1913.61022806,0.0001589,2]
[406284133,1771689039849,-1593.427057,0.00015978,2]
[406284135,1771689039859,-3000.0,0.00016012,2]
[406284137,1771689039869,-3000.0,0.00016012,2]
[406284140,1771689039879,-1800.0,0.00016412,2]
[406284142,1771689039888,-3500.0,0.0001656,2]
[406284144,1771689039896,-1360.47681245,0.0001656,2]
[406284146,1771689039906,-1593.427057,0.00016575,2]
[406284148,1771689039915,-2100.0,0.0001696,2]
[406284150,1771689039924,-285.0,0.00017125,2]
[406284152,1771689039932,-1593.427057,0.00017172,2]
[406284154,1771689039941,-214.2046155,0.00017405,2]
[406284156,1771689039951,-2400.0,0.00017508,2]
[406284158,1771689039961,-150.0,0.00017808,2]
[406284160,1771689039970,-2044.65030303,0.00018056,2]
[406284162,1771689039979,-250.0,0.00018356,2]
[406284164,1771689039988,-304.5212443,0.00018904,2]
[406284166,1771689039997,-312.0,0.00019125,2]
[406284168,1771689040006,-312.48528187,0.00020879,2]
[406284170,1771689040016,-339.0,0.00021125,2]
[406284172,1771689040025,-150.0,0.00021918,2]
[406284174,1771689040034,-300.0,0.00022466,2]
[406284176,1771689040043,-178.74985275,0.00022726,2]
[406284178,1771689040053,-562.47350737,0.00022744,2]
[406284180,1771689040062,-495.73767515,0.00022777,2]
[406284182,1771689040071,-450.0,0.00023014,2]
[406284185,1771689040084,-366.0,0.00023125,2]
[406284188,1771689040094,-223.13559034,0.00023539,2]
[406284190,1771689040103,-172.0,0.0002402,7]
[406284193,1771689040113,-918.30594478,0.00024223,2]
[406284195,1771689040122,-245.83284261,0.00024351,2]
[406284196,1771689040131,-171.3724392,0.00024435,2]
[406284199,1771689040142,-227.76,0.00024558,2]
[406284201,1771689040151,-227.76,0.00024558,2]
[406284203,1771689040161,-227.76,0.00024558,2]
[406284205,1771689040170,-227.76,0.00024558,2]
[406284207,1771689040179,-227.76,0.00024558,2]
[406284209,1771689040188,-227.76,0.00024558,2]
[406284211,1771689040198,-227.76,0.00024558,2]
[406284213,1771689040207,-200.01,0.00024558,2]
[406284215,1771689040217,-4719.55,0.00024559,10]
[406284217,1771689040226,-636.0,0.00024569,2]
[406284219,1771689040235,-1383.0,0.00024569,2]
[406284221,1771689040244,-2172.0,0.00024569,2]
[406284223,1771689040253,-428.001,0.00024569,2]
[406284225,1771689040262,-169.84,0.000246,7]
[406284227,1771689040272,-999.95290198,0.00024609,2]
[406284229,1771689040281,-200.0,0.00024658,2]
[406284230,1771689040290,-150.0,0.00024822,2]
[406284233,1771689040300,-150.0,0.00024877,2]
[406284235,1771689040309,-16976.6141711,0.000249,2]
[406284236,1771689040318,-298.97,0.000249,7]
[406284238,1771689040327,-200.0,0.00024932,2]
[406284241,1771689040337,-151.0,0.00025,10]
[406284242,1771689040346,-393.0,0.00025125,2]
[406284244,1771689040355,-200.0,0.00025134,10]
[406284246,1771689040365,-267.52132793,0.00025164,3]
[406284249,1771689040374,-743.87469872,0.00025509,2]
[406284251,1771689040386,-1302.4589173,0.00025669,4]
[406284253,1771689040395,-150.0,0.00025824,7]
[406284255,1771689040404,-274.07831189,0.00025977,5]
[406284257,1771689040413,-398.24833075,0.00026,5]
[406284259,1771689040423,-151.0,0.00026,11]
[406284261,1771689040432,-555.01534037,0.00026098,7]
[406284263,1771689040441,-326.0,0.00026214,10]
[406284265,1771689040450,-919.71,0.00026565,3]
[406284267,1771689040459,-189.15,0.00026727,3]
[406284269,1771689040468,-443.977322,0.00026737,2]
[406284271,1771689040477,-302.32378127,0.00026789,7]
[406284273,1771689040486,-229.93,0.00026839,3]
[406284275,1771689040495,-151.0,0.00027,14]
[406284277,1771689040505,-500.0,0.00027065,7]
[406284279,1771689040514,-298.97,0.000271,7]
[406284281,1771689040523,-1340.87421442,0.00027114,8]
[406284283,1771689040532,-459.85,0.00027217,3]
[406284285,1771689040541,-617.56,0.00027217,3]
[406284287,1771689040551,-3932.96,0.00027217,10]
[406284289,1771689040560,-504.59306648,0.00027227,2]
[406284291,1771689040570,-908.26751966,0.00027227,2]
[406284293,1771689040579,-1614.69781274,0.00027227,2]
[406284295,1771689040588,-2522.9653324,0.00027227,2]
[406284297,1771689040597,-418.58946466,0.00027227,2]
[406284299,1771689040606,-210.21907427,0.00027227,2]
[406284301,1771689040615,-378.39433369,0.00027227,2]
[406284303,1771689040625,-672.70103767,0.00027227,2]
[406284305,1771689040635,-511.2066,0.00027397,2]
[406284307,1771689040644,-218.1434,0.00027397,3]
[406284309,1771689040654,-150.0,0.00027397,5]
[406284311,1771689040663,-150.0,0.00027397,5]
[406284313,1771689040673,-636.0,0.00027569,2]
[406284315,1771689040682,-1383.0,0.00027569,2]
[406284317,1771689040692,-428.0,0.00027569,2]
[406284319,1771689040701,-311.90706552,0.00027602,10]
[406284321,1771689040710,-500.0,0.00027917,7]
[406284323,1771689040720,-1839.42,0.00027935,3]
[406284325,1771689040730,-1000.0,0.00027936,30]
[406284327,1771689040739,-250.0,0.00027945,5]
[406284329,1771689040747,-251.55217617,0.00027945,5]
[406284331,1771689040757,-151.0,0.00028,13]
[406284333,1771689040765,-150.0,0.00028,5]
[406284335,1771689040775,-378.3,0.00028097,3]
[406284337,1771689040783,-459.86,0.00028209,3]
[406284339,1771689040792,-330.56925064,0.00028415,12]
[406284341,1771689040801,-151.62002564,0.00028475,7]
[406284343,1771689040810,-350.0,0.00028493,5]
[406284345,1771689040820,-250.0,0.00028548,5]
[406284347,1771689040830,-1571.36599785,0.0002856,13]
[406284349,1771689040838,-919.7,0.00028587,3]
[406284351,1771689040847,-168.0,0.00028649,2]
[406284353,1771689040856,-1592.0,0.000287,2]
[406284355,1771689040865,-205.85,0.00028755,3]
[406284357,1771689040874,-168.0,0.00028789,2]
[406284359,1771689040883,-168.0,0.00028793,7]
[406284361,1771689040892,-168.0,0.00028836,2]
[406284363,1771689040901,-298.97,0.000289,7]
[406284365,1771689040910,-168.0,0.00028968,2]
[406284367,1771689040919,-151.0,0.00029,10]
[406284369,1771689040928,-168.0,0.00029022,2]
[406284371,1771689040938,-450.0,0.00029041,5]
[406284373,1771689040947,-402.0,0.00029061,3]
[406284375,1771689040956,-350.0,0.00029096,5]
[406284377,1771689040965,-500.0,0.00029225,7]
[406284379,1771689040974,-356.29280311,0.00029228,14]
[406284381,1771689040983,-402.0,0.0002925,3]
[406284383,1771689040992,-168.0,0.00029489,2]
[406284385,1771689041001,-550.0,0.00029589,5]
[406284387,1771689041011,-169.83,0.000296,7]
[406284397,1771689041092,-200.0,0.00029602,21]
[406284399,1771689041102,-450.0,0.00029644,5]
[406284401,1771689041112,-158.06,0.00029838,2]
[406284403,1771689041122,-223.64553315,0.00029863,14]
[406284405,1771689041131,-168.0,0.00029875,2]
[406284407,1771689041140,-261.08846919,0.0003,5]
[406284409,1771689041149,-151.0,0.0003,13]
[406284411,1771689041160,-173.0,0.0003,14]
[406284413,1771689041169,-1763.44248405,0.00030006,14]
[406284415,1771689041179,-168.0,0.00030034,2]
[406284417,1771689041188,-358.81472001,0.0003004,14]
[406284419,1771689041197,-168.0,0.00030064,7]
[406284421,1771689041207,-411.7,0.00030125,3]
[406284423,1771689041216,-530.27591588,0.00030137,120]
[406284425,1771689041226,-647.13396402,0.00030137,120]